fUST/lending_fUST_20250404
["ID","MTS","AMOUNT","RATE_DAILY","PERIOD"]
[357118481,1743755653174,500.0,0.00024,120]
[357118482,1743755653835,500.0,0.00024,120]
[357118483,1743755654608,500.0,0.00024,120]
[357118484,1743755655385,500.0,0.00024,120]
[357118485,1743755656166,500.0,0.00024,120]
[357118486,1743755656940,500.0,0.00024,120]
[357118487,1743755657754,500.0,0.00024,120]
[357118488,1743755658662,500.0,0.00024,120]
[357118489,1743755659432,500.0,0.00024,120]
[357118490,1743755660200,463.1,0.00024,120]
[357118491,1743755782913,1123.46040892,0.00025,30]
[357118493,1743755959759,150.99993155,0.00025,30]
[357118494,1743756056620,-172.63844085,0.00012939,2]
[357118560,1743756632495,-520.59202895,0.00012939,2]
[357118561,1743756632505,-867.71553179,0.00013598,2]
[357118562,1743756632515,-300.0,0.00013697,2]
[357118563,1743756632524,-500.0,0.00013698,2]
[357118564,1743756632533,-500.0,0.00013698,2]
[357118565,1743756632543,-500.0,0.00013698,2]
[357118566,1743756632553,-500.0,0.00013698,2]
[357118567,1743756632562,-500.0,0.00013698,2]
[357118568,1743756632572,-500.0,0.00013698,2]
[357118569,1743756632581,-500.0,0.00013698,2]
[357118570,1743756632590,-500.0,0.00013698,2]
[357118571,1743756632600,-500.0,0.00013698,2]
[357118572,1743756632610,-511.41891694,0.00013698,2]
[357118573,1743756632619,-193.44450083,0.00013698,2]
[357118574,1743756632629,-500.0,0.00013698,2]
[357118575,1743756632638,-199.91719163,0.00013698,2]
[357118576,1743756632648,-350.3755983,0.00013698,2]
[357118577,1743756632657,-500.0,0.00013698,2]
[357118578,1743756632667,-500.0,0.00013698,2]
[357118579,1743756632676,-500.0,0.00013698,2]
[357118580,1743756632687,-500.0,0.00013698,2]
[357118581,1743756632697,-500.0,0.00013698,2]
[357118582,1743756632707,-500.0,0.00013698,2]
[357118583,1743756632717,-500.0,0.00013698,2]
[357118584,1743756632727,-165.90510083,0.00013698,2]
[357118585,1743756632736,-500.0,0.00013698,2]
[357118586,1743756632746,-500.0,0.00013698,2]
[357118587,1743756632756,-500.0,0.00013698,2]
[357118588,1743756632765,-500.0,0.00013698,2]
[357118589,1743756632775,-500.0,0.00013698,2]
[357118590,1743756632784,-500.0,0.00013698,2]
[357118591,1743756632794,-500.0,0.00013698,2]
[357118592,1743756632803,-500.0,0.00013698,2]
[357118593,1743756632812,-500.0,0.00013698,2]
[357118594,1743756632821,-500.0,0.00013698,2]
[357118595,1743756632831,-500.0,0.00013698,2]
[357118596,1743756632842,-500.0,0.00013698,2]
[357118597,1743756632852,-500.0,0.00013698,2]
[357118598,1743756632862,-500.0,0.00013698,2]
[357118599,1743756632872,-500.0,0.00013698,2]
[357118600,1743756632882,-500.0,0.00013698,2]
[357118601,1743756632892,-500.0,0.00013698,2]
[357118602,1743756632902,-500.0,0.00013698,2]
[357118603,1743756632912,-500.0,0.00013698,2]
[357118604,1743756632921,-500.0,0.00013698,2]
[357118605,1743756632932,-500.0,0.00013698,2]
[357118606,1743756632942,-500.0,0.00013698,2]
[357118607,1743756632952,-500.0,0.00013698,2]
[357118608,1743756632962,-500.0,0.00013698,2]
[357118609,1743756632971,-500.0,0.00013698,2]
[357118610,1743756632982,-500.0,0.00013698,2]
[357118611,1743756632991,-500.0,0.00013698,2]
[357118612,1743756633001,-500.0,0.00013698,2]
[357118613,1743756633011,-500.0,0.00013698,2]
[357118614,1743756633021,-500.0,0.00013698,2]
[357118615,1743756633031,-500.0,0.00013698,2]
[357118616,1743756633041,-500.0,0.00013698,2]
[357118617,1743756633051,-500.0,0.00013698,2]
[357118618,1743756633061,-500.0,0.00013698,2]
[357118619,1743756633071,-500.0,0.00013698,2]
[357118620,1743756633081,-500.0,0.00013698,2]
[357118621,1743756633091,-515.95161382,0.00013698,2]
[357118622,1743756633100,-500.0,0.00013698,2]
[357118623,1743756633111,-500.0,0.00013698,2]
[357118624,1743756633121,-500.0,0.00013698,2]
[357118625,1743756633131,-500.0,0.00013698,2]
[357118626,1743756633141,-362.96,0.00013698,2]
[357118627,1743756633160,-500.0,0.00013698,2]
[357118628,1743756633171,-500.0,0.00013698,2]
[357118629,1743756633182,-511.65450683,0.00013698,2]
[357118630,1743756633193,-500.0,0.00013698,2]
[357118631,1743756633202,-500.0,0.00013698,2]
[357118632,1743756633213,-500.0,0.00013698,2]
[357118633,1743756633223,-500.0,0.00013698,2]
[357118634,1743756633233,-500.0,0.00013698,2]
[357118635,1743756633243,-512.36,0.00013698,2]
[357118636,1743756633253,-500.0,0.00013698,2]
[357118637,1743756633264,-228.0,0.00013698,2]
[357118638,1743756633454,-500.0,0.00013698,2]
[357118639,1743756633467,-500.0,0.00013698,2]
[357118640,1743756633477,-500.0,0.00013698,2]
[357118641,1743756633488,-500.0,0.00013698,2]
[357118642,1743756633497,-500.0,0.00013698,2]
[357118643,1743756633507,-500.0,0.00013698,2]
[357118644,1743756633517,-500.0,0.00013698,2]
[357118645,1743756633527,-500.0,0.00013698,2]
[357118646,1743756633537,-500.0,0.00013698,2]
[357118647,1743756633546,-500.0,0.00013698,2]
[357118648,1743756633556,-625.90842321,0.00013698,2]
[357118649,1743756633565,-349.18,0.00013698,2]
[357118650,1743756633575,-160.26,0.00013698,2]
[357118651,1743756633584,-500.0,0.00013698,2]
[357118652,1743756633594,-500.0,0.00013698,2]
[357118653,1743756633604,-500.0,0.00013698,2]
[357118654,1743756633614,-500.0,0.00013698,2]
[357118655,1743756633624,-500.0,0.00013698,2]
[357118656,1743756633634,-500.0,0.00013698,2]
[357118657,1743756633644,-500.0,0.00013698,2]
[357118658,1743756633654,-500.0,0.00013698,2]
[357118659,1743756633664,-500.0,0.00013698,2]
[357118660,1743756633674,-500.0,0.00013698,2]
[357118661,1743756633685,-500.0,0.00013698,2]
[357118662,1743756633695,-500.0,0.00013698,2]
[357118663,1743756633704,-177.837981,0.00013699,2]
[357118664,1743756633714,-508.80294916,0.00013972,2]
[357118665,1743756633724,-500.0,0.00013972,2]
[357118666,1743756633734,-500.0,0.00013972,2]
[357118667,1743756633744,-625.1309918,0.00013972,2]
[357118668,1743756633754,-500.0,0.00013972,2]
[357118669,1743756633763,-500.0,0.00013972,2]
[357118670,1743756633774,-500.0,0.00013972,2]
[357118671,1743756633784,-500.0,0.00013972,2]
[357118672,1743756633793,-500.0,0.00013972,2]
[357118673,1743756633803,-500.0,0.00013972,2]
[357118674,1743756633813,-500.0,0.00013972,2]
[357118675,1743756633823,-541.95,0.00013972,2]
[357118676,1743756633833,-500.0,0.00013972,2]
[357118677,1743756633843,-500.0,0.00013972,2]
[357118678,1743756633853,-500.0,0.00013972,2]
[357118679,1743756633863,-500.0,0.00013972,2]
[357118680,1743756633872,-500.0,0.00013972,2]
[357118681,1743756633882,-500.0,0.00013972,2]
[357118682,1743756633893,-500.0,0.00013972,2]
[357118683,1743756633903,-500.0,0.00013972,2]
[357118684,1743756633912,-500.0,0.00013972,2]
[357118685,1743756633922,-500.0,0.00013972,2]
[357118686,1743756633932,-500.0,0.00013972,2]
[357118687,1743756633943,-500.0,0.00013972,2]
[357118688,1743756633952,-500.0,0.00013972,2]
[357118689,1743756633962,-500.0,0.00013972,2]
[357118690,1743756633972,-500.0,0.00013972,2]
[357118691,1743756633982,-500.0,0.00013972,2]
[357118692,1743756633992,-500.0,0.00013972,2]
[357118693,1743756634001,-500.0,0.00013972,2]
[357118694,1743756634011,-500.0,0.00013972,2]
[357118695,1743756634021,-500.0,0.00013972,2]
[357118696,1743756634030,-500.0,0.00013972,2]
[357118697,1743756634040,-500.0,0.00013972,2]
[357118698,1743756634051,-410.54308371,0.00013972,2]
[357118699,1743756634060,-604.56783221,0.00013972,2]
[357118700,1743756634071,-500.0,0.00013972,2]
[357118701,1743756634080,-500.0,0.00013972,2]
[357118702,1743756634090,-164.14785667,0.00013972,2]
[357118703,1743756634100,-500.0,0.00013972,2]
[357118704,1743756634110,-500.0,0.00013972,2]
[357118705,1743756634120,-305.74,0.00013972,2]
[357118706,1743756634129,-307.9,0.00013972,2]
[357118707,1743756634139,-500.0,0.00013972,2]
[357118708,1743756634149,-500.0,0.00013972,2]
[357118709,1743756634159,-500.0,0.00013972,2]
[357118710,1743756634173,-477.64,0.00013972,2]
[357118711,1743756634184,-500.0,0.00013972,2]
[357118712,1743756634194,-500.0,0.00013972,2]
[357118713,1743756634205,-500.0,0.00013972,2]
[357118714,1743756634214,-500.0,0.00013972,2]
[357118715,1743756634225,-500.0,0.00013972,2]
[357118716,1743756634235,-500.0,0.00013972,2]
[357118717,1743756634245,-500.0,0.00013972,2]
[357118718,1743756634255,-500.0,0.00013972,2]
[357118719,1743756634266,-622.8,0.00013972,2]
[357118720,1743756634276,-500.0,0.00013972,2]
[357118721,1743756634286,-500.0,0.00013972,2]
[357118722,1743756634298,-500.0,0.00013972,2]
[357118723,1743756634309,-500.0,0.00013972,2]
[357118724,1743756634319,-500.0,0.00014013,2]
[357118725,1743756634329,-503.75817371,0.00014033,2]
[357118726,1743756634339,-511.12613421,0.00014033,2]
[357118727,1743756634349,-500.0,0.00014033,2]
[357118728,1743756634359,-500.0,0.00014033,2]
[357118729,1743756634369,-500.0,0.00014033,2]
[357118730,1743756634381,-500.0,0.00014033,2]
[357118731,1743756634391,-512.05073039,0.00014033,2]
[357118732,1743756634401,-500.0,0.00014033,2]
[357118733,1743756634410,-500.0,0.00014033,2]
[357118734,1743756634420,-500.0,0.00014033,2]
[357118735,1743756634430,-271.39089633,0.00014033,2]
[357118736,1743756634440,-500.0,0.00014037,2]
[357118737,1743756634450,-500.0,0.00014044,2]
[357118738,1743756634459,-500.0,0.0001405,2]
[357118739,1743756634469,-500.0,0.00014115,2]
[357118740,1743756634479,-500.0,0.00014115,2]
[357118741,1743756634488,-500.0,0.00014152,2]
[357118742,1743756634498,-519.97817168,0.00014246,2]
[357118743,1743756634507,-505.23940601,0.00014246,2]
[357118744,1743756634516,-184.15,0.00014246,2]
[357118745,1743756634525,-258.7,0.00014246,2]
[357118746,1743756634535,-357.45242531,0.00014246,2]
[357118747,1743756634545,-500.0,0.00014246,2]
[357118748,1743756634555,-500.0,0.00014246,2]
[357118749,1743756634564,-433.26,0.00014246,2]
[357118750,1743756634573,-500.0,0.00014246,2]
[357118751,1743756634583,-500.0,0.00014246,2]
[357118752,1743756634593,-500.0,0.00014246,2]
[357118753,1743756634603,-500.0,0.00014246,2]
[357118754,1743756634613,-390.85157679,0.00014246,2]
[357118755,1743756634625,-500.0,0.00014246,2]
[357118756,1743756634635,-616.90999999,0.00014246,2]
[357118757,1743756634645,-300.48,0.00014246,2]
[357118758,1743756634656,-500.0,0.00014246,2]
[357118759,1743756634666,-500.0,0.00014246,2]
[357118760,1743756634676,-500.0,0.00014246,2]
[357118761,1743756634689,-500.0,0.00014246,2]
[357118762,1743756634699,-500.0,0.0001452,2]
[357118763,1743756634709,-498.5,0.0001452,2]
[357118764,1743756634718,-500.0,0.0001452,2]
[357118765,1743756634728,-385.35616484,0.0001452,2]
[357118766,1743756634737,-500.0,0.0001452,2]
[357118767,1743756634747,-500.0,0.00014794,2]
[357118768,1743756634757,-500.0,0.00014794,2]
[357118769,1743756634766,-500.0,0.00015068,2]
[357118770,1743756634776,-500.0,0.00015068,2]
[357118771,1743756634785,-608.26,0.00015342,2]
[357118772,1743756634795,-10173.55017725,0.000158,2]
[357118773,1743756634805,-10173.55017717,0.000158,2]
[357118774,1743756634814,-867.71553178,0.00016641,2]
[357118775,1743756634824,-594.47598589,0.00016692,2]
[357118776,1743756634834,-500.0,0.00016692,2]
[357118777,1743756634843,-187.87197361,0.00016692,2]
[357118778,1743756634853,-177.11501615,0.00016692,2]
[357118779,1743756634863,-10173.55017717,0.00016693,2]
[357118780,1743756634873,-8321.7486378,0.00016945,2]
[357118781,1743756634882,-5000.0,0.00016945,2]
[357118782,1743756634891,-5000.0,0.00016945,2]
[357118783,1743756634901,-5000.0,0.00016945,2]
[357118784,1743756634910,-10173.55017717,0.0001759,2]
[357118785,1743756634920,-419.12848707,0.00017999,2]
[357118786,1743756634931,-160.0,0.00017999,2]
[357118787,1743756634940,-10173.55017717,0.00018486,2]
[357118788,1743756634949,-177.837981,0.00019178,2]
[357118789,1743756634959,-151.0,0.000193,2]
[357118790,1743756634969,-10173.55017717,0.00019383,2]
[357118791,1743756634978,-1000.0,0.00019492,2]
[357118792,1743756634987,-1000.0,0.00019513,2]
[357118793,1743756634997,-1000.0,0.00019513,2]
[357118794,1743756635007,-1000.0,0.00019513,2]
[357118795,1743756635016,-1000.0,0.00019513,2]
[357118796,1743756635027,-1000.0,0.00019513,2]
[357118797,1743756635038,-1000.0,0.00019513,2]
[357118798,1743756635047,-1000.0,0.00019513,2]
[357118799,1743756635058,-1000.0,0.00019517,2]
[357118800,1743756635068,-1000.0,0.00019524,2]
[357118801,1743756635078,-1000.0,0.00019529,2]
[357118802,1743756635088,-1000.0,0.00019594,2]
[357118803,1743756635098,-1000.0,0.00019594,2]
[357118804,1743756635108,-1000.0,0.00019632,2]
[357118805,1743756635117,-867.71553178,0.00019684,2]
[357118806,1743756635127,-151.0,0.000201,3]
[357118807,1743756635137,-10173.55017717,0.00020279,2]
[357118808,1743756635147,-168.0,0.00020418,2]
[357118809,1743756635156,-326.0,0.00020418,2]
[357118810,1743756635166,-151.0,0.000209,4]
[357118811,1743756635175,-152.24,0.00021,2]
[357118812,1743756635186,-160.0,0.00021176,3]
[357118813,1743756635195,-10173.55017717,0.00021176,3]
[357118814,1743756635206,-151.0,0.000217,3]
[357118815,1743756635216,-6692.64682166,0.000219,2]
[357118816,1743756635226,-500.0,0.00021973,2]
[357118817,1743756635235,-500.0,0.00021973,2]
[357118818,1743756635245,-500.0,0.00021973,2]
[357118819,1743756635254,-500.0,0.00021973,2]
[357118820,1743756635263,-500.0,0.00021973,2]
[357118821,1743756635275,-500.0,0.00021973,2]
[357118822,1743756635292,-500.0,0.00021973,2]
[357118823,1743756635302,-500.0,0.00021973,2]
[357118824,1743756635311,-500.0,0.00021973,2]
[357118825,1743756635321,-500.0,0.00021973,2]
[357118826,1743756635331,-500.0,0.00021973,2]
[357118827,1743756635342,-500.0,0.00021973,2]
[357118828,1743756635354,-500.0,0.00021973,2]
[357118829,1743756635379,-500.0,0.00021973,2]
[357118830,1743756635391,-500.0,0.00021973,2]
[357118831,1743756635401,-500.0,0.00021973,2]
[357118832,1743756635411,-512.84036215,0.00021999,2]
[357118833,1743756635420,-2272.98,0.00022,2]
[357118834,1743756635431,-206.0,0.00022,2]
[357118835,1743756635441,-206.0,0.00022,2]
[357118836,1743756635450,-206.0,0.00022,2]
[357118837,1743756635460,-5310.68,0.00022,14]
[357118838,1743756635469,-13686.68,0.00022,14]
[357118839,1743756635480,-652781.7,0.00022,14]
[357118840,1743756635490,-5490.12,0.00022,14]
[357118841,1743756635499,-300.0,0.00022,2]
[357118842,1743756635509,-1000.0,0.00022,2]
[357118843,1743756635519,-10173.55017717,0.00022072,3]
[357118844,1743756635530,-151.0,0.000225,6]
[357118845,1743756635539,-867.71553178,0.00022727,2]
[357118846,1743756635549,-10173.55017717,0.00022969,4]
[357118847,1743756635558,-160.0,0.00023,3]
[357118848,1743756635579,-500.0,0.0002302,2]
[357118849,1743756635590,-500.0,0.00023053,2]
[357118850,1743756635600,-500.0,0.00023062,2]
[357118851,1743756635610,-500.0,0.00023063,2]
[357118852,1743756635619,-500.0,0.00023083,2]
[357118853,1743756635629,-500.0,0.00023169,2]
[357118854,1743756635639,-500.0,0.00023205,2]
[357118855,1743756635649,-500.0,0.00023208,2]
[357118856,1743756635659,-500.0,0.00023231,2]
[357118857,1743756635668,-500.0,0.00023284,2]
[357118858,1743756635679,-151.0,0.000233,10]
[357118859,1743756635689,-500.0,0.00023319,2]
[357118860,1743756635699,-500.0,0.00023322,2]
[357118861,1743756635709,-160.0,0.0002333,3]
[357118862,1743756635719,-500.0,0.00023364,2]
[357118863,1743756635730,-500.0,0.00023367,2]
[357118864,1743756635740,-500.0,0.00023418,2]
[357118865,1743756635750,-500.0,0.00023433,2]
[357118866,1743756635761,-500.0,0.00023575,2]
[357118867,1743756635771,-500.0,0.00023598,2]
[357118868,1743756635781,-154.547,0.00023616,4]
[357118869,1743756635791,-500.0,0.00023618,2]
[357118870,1743756635800,-500.0,0.00023624,2]
[357118871,1743756635812,-200.0,0.0002371,11]
[357118872,1743756635822,-500.0,0.00023724,2]
[357118873,1743756635832,-10173.55017717,0.00023866,5]
[357118874,1743756635842,-500.0,0.00023989,2]
[357118875,1743756635851,-291.1372007,0.00023996,2]
[357118876,1743756635861,-3013.71392238,0.00024,2]
[357118877,1743756635871,-13686.68,0.00024,14]
[357118878,1743756635881,-652781.7,0.00024,14]
[357118879,1743756635891,-1326.396147,0.00024,2]
[357118880,1743756635901,-500.0,0.00024005,2]
[357118881,1743756635911,-500.0,0.00024009,2]
[357118882,1743756635921,-500.0,0.00024036,2]
[357118883,1743756635932,-500.0,0.00024042,2]
[357118884,1743756635942,-500.0,0.00024066,2]
[357118885,1743756635951,-151.0,0.000241,10]
[357118886,1743756635961,-5310.68,0.000241,14]
[357118887,1743756635971,-5490.12,0.000241,14]
[357118888,1743756635980,-477.8428094,0.00024135,2]
[357118889,1743756635991,-160.0,0.0002414,4]
[357118890,1743756636001,-500.0,0.00024183,2]
[357118891,1743756636011,-500.0,0.0002425,2]
[357118892,1743756636021,-500.0,0.00024263,2]
[357118893,1743756636030,-500.0,0.00024385,2]
[357118894,1743756636040,-631.0,0.000244,2]
[357118895,1743756636052,-500.0,0.00024431,2]
[357118896,1743756636063,-804.97604422,0.00024455,2]
[357118897,1743756636073,-500.0,0.00024494,2]
[357118898,1743756636083,-156.139474,0.000245,14]
[357118899,1743756636093,-1000.0,0.000245,2]
[357118900,1743756636103,-713.052626,0.000245,2]
[357118901,1743756636113,-500.0,0.00024503,2]
[357118902,1743756636122,-380.0,0.00024658,2]
[357118903,1743756636132,-177.837981,0.00024658,2]
[357118904,1743756636142,-193.0140451,0.00024658,15]
[357118905,1743756636152,-890.7207317,0.00024682,2]
[357118906,1743756636161,-446.5,0.00024726,15]
[357118907,1743756636171,-10173.55017717,0.00024762,5]
[357118908,1743756636184,-500.0,0.00024771,2]
[357118909,1743756636202,-334.56070074,0.00024773,2]
[357118910,1743756636212,-500.0,0.00024773,2]
[357118911,1743756636222,-500.0,0.00024773,2]
[357118912,1743756636231,-800.0,0.00024776,2]
[357118913,1743756636241,-370000.0,0.000248,2]
[357118914,1743756636251,-151.0,0.000248,6]
[357118915,1743756636262,-151.0,0.000248,10]
[357118916,1743756636272,-151.0,0.000248,6]
[357118917,1743756636284,-151.0,0.000248,6]
[357118918,1743756636295,-151.0,0.000248,5]
[357118919,1743756636305,-151.0,0.000248,6]
[357118920,1743756636314,-151.0,0.000248,7]
[357118921,1743756636325,-151.0,0.000248,7]
[357118922,1743756636335,-316.456088,0.000248,7]
[357118923,1743756636345,-316.456088,0.000248,7]
[357118924,1743756636355,-316.456088,0.000248,7]
[357118925,1743756636365,-316.456088,0.000248,7]
[357118926,1743756636375,-151.0,0.000248,7]
[357118927,1743756636384,-160826.948537,0.000248,2]
[357118928,1743756636394,-151.0,0.000248,7]
[357118929,1743756636404,-151.0,0.000248,7]
[357118930,1743756636413,-151.0,0.000248,7]
[357118931,1743756636423,-151.0,0.000248,7]
[357118932,1743756636433,-151.0,0.000248,7]
[357118933,1743756636443,-300.0,0.00024806,2]
[357118934,1743756636453,-1001.74325695,0.00024806,2]
[357118935,1743756636463,-500.0,0.00024819,2]
[357118936,1743756636472,-800.0,0.00024825,2]
[357118937,1743756636482,-500.0,0.00024835,2]
[357118938,1743756636491,-240.24683501,0.00024842,2]
[357118939,1743756636501,-500.0,0.00024865,2]
[357118940,1743756636510,-501.48614492,0.00024873,2]
[357118941,1743756636519,-500.0,0.00024873,2]
[357118942,1743756636529,-500.0,0.00024873,2]
[357118943,1743756636538,-500.0,0.00024881,2]
[357118944,1743756636548,-978.69489901,0.000249,3]
[357118945,1743756636696,-6896.68107252,0.000249,3]
[357118946,1743756636706,-151.0,0.000249,8]
[357118947,1743756636716,-151.0,0.000249,8]
[357118948,1743756636725,-151.0,0.000249,5]
[357118949,1743756636735,-151.0,0.000249,5]
[357118950,1743756636744,-210.19958848,0.000249,3]
[357118951,1743756636754,-166.0,0.000249,3]
[357118952,1743756636763,-166.0,0.000249,3]
[357118953,1743756636773,-162.89753949,0.000249,3]
[357118954,1743756636783,-357.0,0.000249,3]
[357118955,1743756636793,-318.0,0.000249,3]
[357118956,1743756636803,-357.0,0.000249,3]
[357118957,1743756636812,-318.0,0.000249,3]
[357118958,1743756636822,-357.0,0.000249,3]
[357118959,1743756636832,-318.0,0.000249,3]
[357118960,1743756636841,-357.0,0.000249,3]
[357118961,1743756636851,-318.0,0.000249,3]
[357118962,1743756636860,-357.0,0.000249,3]
[357118963,1743756636870,-318.0,0.000249,3]
[357118964,1743756636879,-357.0,0.000249,3]
[357118965,1743756636889,-357.0,0.000249,3]
[357118966,1743756636898,-318.0,0.000249,3]
[357118967,1743756636907,-357.0,0.000249,3]
[357118968,1743756636917,-318.0,0.000249,3]
[357118969,1743756636927,-357.0,0.000249,3]
[357118970,1743756636938,-318.0,0.000249,3]
[357118971,1743756636948,-357.0,0.000249,3]
[357118972,1743756636958,-318.0,0.000249,3]
[357118973,1743756636968,-357.0,0.000249,3]
[357118974,1743756636978,-318.0,0.000249,3]
[357118975,1743756636987,-357.0,0.000249,3]
[357118976,1743756636997,-318.0,0.000249,3]
[357118977,1743756637007,-357.0,0.000249,3]
[357118978,1743756637016,-318.0,0.000249,3]
[357118979,1743756637025,-357.0,0.000249,3]
[357118980,1743756637035,-357.0,0.000249,3]
[357118981,1743756637044,-318.0,0.000249,3]
[357118982,1743756637054,-357.0,0.000249,3]
[357118983,1743756637063,-318.0,0.000249,3]
[357118984,1743756637073,-357.0,0.000249,3]
[357118985,1743756637083,-318.0,0.000249,3]
[357118986,1743756637092,-394.42800113,0.000249,3]
[357118987,1743756637102,-318.0,0.000249,3]
[357118988,1743756637112,-318.0,0.000249,3]
[357118989,1743756637122,-318.0,0.000249,3]
[357118990,1743756637132,-318.0,0.000249,3]
[357118991,1743756637142,-151.0,0.000249,7]
[357118992,1743756637151,-151.0,0.000249,7]
[357118993,1743756637161,-217.49728,0.000249,7]
[357118994,1743756637170,-316.456088,0.000249,7]
[357118995,1743756637180,-316.456088,0.000249,7]
[357118996,1743756637190,-206754.10968882,0.000249,2]
[357118997,1743756637273,-5039.99948506,0.000249,2]
[357119008,1743756638304,-500.0,0.00014246,2]
[357119009,1743756638314,-500.0,0.0001452,2]
[357119010,1743756638324,-500.0,0.00014794,2]
[357119011,1743756638333,-499.99999999,0.00015068,2]
[357119012,1743756638343,-27026.49449319,0.000249,2]
[357119014,1743756638356,-6294.69132659,0.000249,2]
[357119031,1743756641231,-0.00062238,0.00021176,3]
[357119032,1743756641260,-400.0,0.00021176,3]
[357119042,1743756643431,-791.671979,0.00021176,3]
[357119043,1743756643483,-340.03628599,0.00021176,3]
[357119044,1743756643493,-161.0,0.00024,2]
[357119045,1743756643503,-151.0,0.000248,7]
[357119046,1743756643512,-151.0,0.000248,7]
[357119047,1743756643522,-151.0,0.000248,7]
[357119048,1743756643531,-151.0,0.000248,7]
[357119049,1743756643541,-894.96371401,0.000249,2]
[357119050,1743756643557,-3479.97,0.000249,2]
[357119051,1743756643569,-2575.05444565,0.000249,2]
[357119104,1743756646530,-151.0,0.000248,7]
[357119105,1743756646540,-146.0,0.000248,7]
[357119106,1743756646639,-5.0,0.000248,7]
[357119107,1743756646649,-958.57499173,0.000249,2]
[357119108,1743756646663,-4180.95373493,0.000249,2]
[357119133,1743757832707,-500.0,0.00013698,2]
[357119134,1743757832718,-177.837981,0.00013699,2]
[357119135,1743757832729,-467.20476232,0.00015629,2]
[357119136,1743757832741,-300.0,0.00015863,2]
[357119137,1743757832751,-500.0,0.00015864,2]
[357119138,1743757832760,-500.0,0.00015864,2]
[357119139,1743757832769,-202.65776269,0.00015864,2]
[357119140,1743757832780,-500.0,0.00015864,2]
[357119141,1743757832790,-500.0,0.00015864,2]
[357119142,1743757832800,-375.22,0.00015864,2]
[357119143,1743757832811,-215.86,0.00015864,2]
[357119144,1743757832823,-500.0,0.00015864,2]
[357119145,1743757832834,-500.0,0.00015864,2]
[357119146,1743757832844,-425.99753964,0.00015864,2]
[357119153,1743757838418,-74.00246036,0.00015864,2]
[357119154,1743757838428,-342.34884664,0.00015864,2]
[357119155,1743757838472,-247.17115336,0.00015864,2]
[357119156,1743757838482,-252.82884664,0.00015864,2]
[357119157,1743757838494,-247.17115336,0.00015864,2]
[357119158,1743757838503,-436.29913244,0.00015864,2]
[357119159,1743757838515,-63.70086756,0.00015864,2]
[357119160,1743757838524,-500.0,0.00015864,2]
[357119161,1743757838533,-250.33026842,0.00015864,2]
[357119162,1743757838545,-249.66973158,0.00015864,2]
[357119163,1743757838555,-500.0,0.00015864,2]
[357119164,1743757838564,-500.0,0.00015864,2]